fUST/lending_fUST_20260201
["ID","MTS","AMOUNT","RATE_DAILY","PERIOD"]
[404151893,1769883017684,-151.0,0.000177,2]
[404151894,1769883017716,-151.0,0.000177,2]
[404151895,1769883017749,-151.0,0.000177,2]
[404151896,1769883017780,-151.0,0.000177,2]
[404151897,1769883017825,-151.0,0.000177,2]
[404151898,1769883017857,-151.0,0.000177,2]
[404151899,1769883017889,-151.0,0.000177,2]
[404151900,1769883017923,-49125.90152872,0.00017779,2]
[404151901,1769883022659,-155.0,0.00036384,2]
[404151902,1769883022687,-16354.72,0.00036384,3]
[404151903,1769883022713,-16354.72,0.00036384,3]
[404151904,1769883022740,-16354.72,0.00036384,3]
[404151905,1769883022766,-16354.72,0.00036384,3]
[404151906,1769883022794,-16354.72,0.00036384,3]
[404151907,1769883022820,-16354.72,0.00036384,3]
[404151908,1769883022844,-16354.72,0.00036384,3]
[404151909,1769883022869,-16354.72,0.00036384,3]
[404151910,1769883022897,-16354.72,0.00036384,3]
[404151911,1769883022923,-16354.72,0.00036384,3]
[404151912,1769883022947,-16354.72,0.00036384,3]
[404151913,1769883022974,-16354.72,0.00036384,3]
[404151914,1769883022999,-16354.72,0.00036384,3]
[404151915,1769883023025,-16354.72,0.00036384,3]
[404151916,1769883023051,-16354.72,0.00036384,3]
[404151917,1769883023076,-16354.72,0.00036384,3]
[404151918,1769883023100,-16354.72,0.00036384,3]
[404151919,1769883023125,-16354.72,0.00036384,3]
[404151920,1769883023152,-16354.72,0.00036384,3]
[404151921,1769883023179,-16354.72,0.00036384,3]
[404151922,1769883023204,-16354.72,0.00036384,3]
[404151923,1769883023229,-16354.72,0.00036384,3]
[404151924,1769883023253,-16354.72,0.00036384,3]
[404151925,1769883023279,-16354.73542423,0.00036384,3]
[404151926,1769883023305,-333.04850535,0.00036384,120]
[404151927,1769883023330,-333.04850535,0.00036384,120]
[404151928,1769883023356,-333.04850535,0.00036384,120]
[404151929,1769883023381,-333.04850535,0.00036384,120]
[404151930,1769883023408,-333.04850535,0.00036384,120]
[404151931,1769883023435,-333.04850535,0.00036384,120]
[404151932,1769883023459,-333.04850535,0.00036384,120]
[404151933,1769883023484,-333.04850535,0.00036384,120]
[404151934,1769883023510,-333.04850535,0.00036384,120]
[404151935,1769883023535,-333.04850535,0.00036384,120]
[404151936,1769883023561,-333.04850535,0.00036384,120]
[404151937,1769883023588,-333.04850535,0.00036384,120]
[404151938,1769883023614,-333.04850535,0.00036384,120]
[404151939,1769883023641,-333.04850535,0.00036384,120]
[404151940,1769883023668,-184.19097939,0.00036384,120]
[404151941,1769883023693,-184.19097939,0.00036384,120]
[404151942,1769883023804,-184.19097939,0.00036384,120]
[404151943,1769883023829,-166.52425265,0.00036384,120]
[404151944,1769883023858,-166.52425265,0.00036384,120]
[404151945,1769883023884,-579.05187674,0.00036384,14]
[404151946,1769883023913,-150.0,0.00036384,2]
[404151947,1769883023939,-500.0,0.00036384,2]
[404151948,1769883023966,-500.0,0.00036384,2]
[404151949,1769883023991,-500.0,0.00036384,2]
[404151950,1769883024015,-553.78358782,0.00036384,2]
[404151951,1769883024040,-500.0,0.00036384,14]
[404151952,1769883024065,-500.0,0.00036384,14]
[404151953,1769883024090,-500.0,0.00036384,14]
[404151954,1769883024123,-500.0,0.00036384,14]
[404151955,1769883024151,-179.19793153,0.00036384,14]
[404151956,1769883024176,-163.999496,0.00036384,120]
[404151957,1769883024200,-500.0,0.00036384,120]
[404151958,1769883024226,-421.89666553,0.00036384,120]
[404151959,1769883024250,-500.0,0.00036384,7]
[404151960,1769883024275,-500.0,0.00036384,7]
[404151961,1769883024299,-500.0,0.00036384,7]
[404151962,1769883024323,-500.0,0.00036384,7]
[404151963,1769883024346,-500.0,0.00036384,7]
[404151964,1769883024370,-500.0,0.00036384,7]
[404151965,1769883024393,-500.0,0.00036384,7]
[404151966,1769883024417,-500.0,0.00036384,7]
[404151967,1769883024441,-500.0,0.00036384,7]
[404151968,1769883024465,-500.0,0.00036384,7]
[404151969,1769883024489,-500.0,0.00036384,7]
[404151970,1769883024515,-502.60251895,0.00036384,7]
[404151971,1769883024539,-500.0,0.00036384,12]
[404151972,1769883024563,-500.0,0.00036384,12]
[404151973,1769883024589,-500.0,0.00036384,12]
[404151974,1769883024613,-500.0,0.00036384,12]
[404151975,1769883024638,-245.73568533,0.00036384,12]
[404151976,1769883024664,-500.0,0.00036384,8]
[404151977,1769883024687,-500.0,0.00036384,8]
[404151978,1769883024710,-500.0,0.00036384,8]
[404151979,1769883024733,-500.0,0.00036384,8]
[404151980,1769883024756,-500.0,0.00036384,8]
[404151981,1769883024780,-500.0,0.00036384,8]
[404151982,1769883024803,-500.0,0.00036384,8]
[404151983,1769883024827,-500.0,0.00036384,8]
[404151984,1769883024850,-327.6845381,0.00036384,8]
[404151985,1769883024875,-250.0,0.00036384,10]
[404151986,1769883024901,-250.0,0.00036384,10]
[404151987,1769883024929,-450.956387,0.00036384,10]
[404151988,1769883024955,-838.85,0.00036384,14]
[404151989,1769883024982,-838.85,0.00036384,14]
[404151990,1769883025005,-838.85,0.00036384,14]
[404151991,1769883025029,-838.85,0.00036384,14]
[404151992,1769883025052,-838.85,0.00036384,14]
[404151993,1769883025074,-838.85,0.00036384,14]
[404151994,1769883025096,-838.85,0.00036384,14]
[404151995,1769883025120,-838.85,0.00036384,14]
[404151996,1769883025144,-838.85,0.00036384,14]
[404151997,1769883025171,-838.85,0.00036384,14]
[404151998,1769883025196,-838.85,0.00036384,14]
[404151999,1769883025224,-838.85,0.00036384,14]
[404152000,1769883025250,-838.85,0.00036384,14]
[404152001,1769883025273,-838.85,0.00036384,14]
[404152002,1769883025297,-838.85,0.00036384,14]
[404152003,1769883025322,-838.85,0.00036384,14]
[404152004,1769883025345,-838.85,0.00036384,14]
[404152005,1769883025368,-838.85,0.00036384,14]
[404152006,1769883025392,-838.85,0.00036384,14]
[404152007,1769883025419,-838.85,0.00036384,14]
[404152008,1769883025442,-838.85,0.00036384,14]
[404152009,1769883025466,-838.85,0.00036384,14]
[404152010,1769883025490,-838.85,0.00036384,14]
[404152011,1769883025515,-838.90862427,0.00036384,14]
[404152012,1769883025539,-500.72471402,0.00036384,12]
[404152013,1769883030121,-2400000.0,0.00017579,2]
[404152014,1769883030151,-20874.16847128,0.00017779,2]
[404152015,1769883030177,-3583.19021041,0.00018,2]
[404152016,1769883030202,-10000.01,0.00018512,2]
[404152017,1769883030227,-10000.01,0.00018512,2]
[404152018,1769883030254,-500.0,0.00018611,2]
[404152019,1769883030280,-393.24,0.00018611,2]
[404152020,1769883030309,-393.24,0.00018611,2]
[404152021,1769883030334,-393.24,0.00018611,2]
[404152022,1769883030358,-393.24,0.00018611,2]
[404152023,1769883030383,-393.24,0.00018611,2]
[404152024,1769883030407,-393.24,0.00018611,2]
[404152025,1769883030436,-393.24,0.00018611,2]
[404152026,1769883030461,-393.24,0.00018611,2]
[404152027,1769883030486,-393.24,0.00018611,2]
[404152028,1769883030512,-393.24,0.00018611,2]
[404152029,1769883030538,-393.24,0.00018611,2]
[404152030,1769883030566,-393.24,0.00018611,2]
[404152031,1769883030591,-393.24,0.00018611,2]
[404152032,1769883030616,-393.24,0.00018611,2]
[404152033,1769883030642,-393.24,0.00018611,2]
[404152034,1769883030666,-393.24,0.00018611,2]
[404152035,1769883030804,-393.24,0.00018611,2]
[404152036,1769883030830,-393.24,0.00018611,2]
[404152037,1769883030854,-393.24,0.00018611,2]
[404152038,1769883030879,-393.24,0.00018611,2]
[404152039,1769883030904,-393.24,0.00018611,2]
[404152040,1769883030935,-393.24,0.00018611,2]
[404152041,1769883030960,-393.24,0.00018611,2]
[404152042,1769883030983,-393.44128375,0.00018611,2]
[404152043,1769883031007,-332.93810199,0.00018611,2]
[404152044,1769883031030,-1000.0,0.00018611,2]
[404152045,1769883031053,-581.56433519,0.00018611,2]
[404152046,1769883031076,-617.69956601,0.00018611,2]
[404152047,1769883031099,-20922.20669641,0.00018612,2]
[404152048,1769883031122,-10000.0,0.00018743,2]
[404152049,1769883031146,-166.34,0.0001879,3]
[404152050,1769883031169,-499.07,0.0001879,3]
[404152051,1769883031195,-500.0,0.00018799,2]
[404152052,1769883031221,-500.0,0.00018799,2]
[404152053,1769883031245,-349.0670588,0.00018799,2]
[404152054,1769883031274,-500.0,0.00018799,2]
[404152055,1769883031300,-500.0,0.00018799,2]
[404152056,1769883031325,-500.0,0.00018799,2]
[404152057,1769883031350,-500.0,0.00018799,2]
[404152058,1769883031375,-500.0,0.00018799,2]
[404152059,1769883031401,-500.0,0.00018799,2]
[404152060,1769883031426,-398.34352037,0.00018799,2]
[404152061,1769883031450,-377.37442587,0.00018799,2]
[404152062,1769883031474,-151.0,0.000188,2]
[404152063,1769883031498,-151.0,0.000188,2]
[404152064,1769883031521,-151.0,0.000188,2]
[404152065,1769883031545,-151.0,0.000188,2]
[404152066,1769883031569,-151.0,0.000188,2]
[404152067,1769883031594,-151.0,0.000188,2]
[404152068,1769883031617,-151.0,0.000188,2]
[404152069,1769883031640,-151.0,0.000188,2]
[404152070,1769883031664,-151.0,0.000188,2]
[404152071,1769883031689,-151.0,0.000188,2]
[404152072,1769883031713,-165.62196221,0.00018885,2]
[404152073,1769883031736,-500.0,0.000189,2]
[404152074,1769883031758,-500.0,0.000189,2]
[404152075,1769883031781,-500.0,0.000189,2]
[404152076,1769883031804,-500.0,0.000189,2]
[404152077,1769883031827,-500.0,0.000189,2]
[404152078,1769883031851,-500.0,0.000189,2]
[404152079,1769883031875,-500.0,0.000189,2]
[404152080,1769883031902,-502.22690096,0.000189,2]
[404152081,1769883031928,-682.20746675,0.000189,2]
[404152098,1769883032318,-1317.79253325,0.000189,2]
[404152100,1769883032328,-303.10001603,0.000189,2]
[404152101,1769883032337,-303.10001603,0.000189,2]
[404152103,1769883032346,-2262.02,0.00019075,2]
[404152105,1769883032356,-303.10001603,0.00019089,2]
[404152107,1769883032365,-303.10001603,0.00019089,2]
[404152108,1769883032374,-300.0,0.00019175,2]
[404152109,1769883032384,-300.0,0.00019175,2]
[404152110,1769883032394,-300.0,0.00019175,2]
[404152111,1769883032403,-300.0,0.00019175,2]
[404152112,1769883032413,-300.0,0.00019175,2]
[404152113,1769883032423,-300.0,0.00019175,2]
[404152114,1769883032433,-300.0,0.00019175,2]
[404152115,1769883032443,-300.0,0.00019175,2]
[404152116,1769883032452,-300.0,0.00019175,2]
[404152117,1769883032462,-300.0,0.00019175,2]
[404152118,1769883032471,-300.0,0.00019175,2]
[404152119,1769883032480,-300.0,0.00019175,2]
[404152120,1769883032489,-300.0,0.00019175,2]
[404152121,1769883032499,-300.0,0.00019175,2]
[404152122,1769883032508,-300.0,0.00019175,2]
[404152123,1769883032518,-600.0,0.00019175,2]
[404152124,1769883032527,-508.3023,0.00019178,2]
[404152125,1769883032536,-200.0,0.00019178,2]
[404152126,1769883032546,-508.3023,0.00019178,2]
[404152127,1769883032555,-508.3023,0.00019178,2]
[404152128,1769883032564,-508.3023,0.00019178,2]
[404152129,1769883032574,-508.3023,0.00019178,2]
[404152130,1769883032583,-508.3023,0.00019178,2]
[404152131,1769883032593,-508.3023,0.00019178,2]
[404152132,1769883032603,-508.3023,0.00019178,2]
[404152133,1769883032612,-150.0,0.00019178,2]
[404152134,1769883032622,-420.0,0.00019188,2]
[404152135,1769883032631,-699.85,0.000192,2]
[404152136,1769883032641,-168.51,0.000192,2]
[404152137,1769883032651,-168.08,0.000192,2]
[404152138,1769883032662,-6478.9,0.000192,2]
[404152139,1769883032674,-158.7,0.000192,2]
[404152140,1769883032684,-1680.0,0.00019257,2]
[404152141,1769883032694,-303.10001603,0.00019278,2]
[404152142,1769883032703,-303.10001603,0.00019278,2]
[404152143,1769883032712,-303.10001603,0.00019467,2]
[404152144,1769883032722,-303.10001603,0.00019467,2]
[404152145,1769883032731,-508.3023,0.00019589,3]
[404152146,1769883032741,-508.3023,0.00019589,3]
[404152147,1769883032750,-340.20219401,0.00019589,3]
[404152148,1769883032762,-168.10010599,0.00019589,3]
[404152149,1769883032771,-508.3023,0.00019589,3]
[404152150,1769883032780,-292.51044154,0.00019589,3]
[404152151,1769883032792,-215.79185846,0.00019589,3]
[404152152,1769883032802,-508.3023,0.00019589,3]
[404152153,1769883032811,-121.55584154,0.00019589,3]
[404152181,1769883038614,-1288.6844329,0.00017587,2]
[404152183,1769883038623,-386.74645846,0.00019589,3]
[404152185,1769883038632,-508.3023,0.00019589,3]
[404152187,1769883038643,-181.52776859,0.00019617,2]
[404152189,1769883038652,-303.10001603,0.00019656,2]
[404152191,1769883038662,-303.10001603,0.00019656,2]
[404152193,1769883038671,-350.74660917,0.00019726,2]
[404152195,1769883038683,-454.65002405,0.00019845,4]
[404152197,1769883038692,-454.65002405,0.00019845,4]
[404152199,1769883038702,-508.3023,0.0002,4]
[404152201,1769883038712,-508.3023,0.0002,4]
[404152203,1769883038721,-508.3023,0.0002,4]
[404152205,1769883038730,-508.3023,0.0002,4]
[404152207,1769883038739,-508.3023,0.0002,4]
[404152209,1769883038748,-508.3023,0.0002,4]
[404152211,1769883038757,-2000.0,0.0002,7]
[404152214,1769883038766,-508.3023,0.0002,4]
[404152216,1769883038775,-508.3023,0.0002,4]
[404152217,1769883038784,-454.65002405,0.00020034,4]
[404152219,1769883038793,-454.65002405,0.00020034,4]
[404152222,1769883038803,-332.68,0.0002016,3]
[404152224,1769883038812,-454.65002405,0.00020223,4]
[404152225,1769883038822,-454.65002405,0.00020223,4]
[404152227,1769883038831,-454.65002405,0.00020412,4]
[404152229,1769883038840,-303.100016,0.00020412,4]
[404152231,1769883038850,-454.65002405,0.00020601,4]
[404152233,1769883038859,-587.0,0.00020945,2]
[404152235,1769883038868,-14512.2427402,0.00020991,2]
[404152237,1769883038878,-720.0,0.00021092,10]
[404152239,1769883038887,-2351.0,0.00021125,2]
[404152241,1769883038901,-1000.0,0.000214,2]
[404152243,1769883038910,-1000.0,0.000214,2]
[404152245,1769883038921,-1000.0,0.000214,2]
[404152247,1769883038931,-1000.0,0.000214,2]
[404152249,1769883038942,-1000.0,0.000214,2]
[404152251,1769883038952,-1000.0,0.000214,2]
[404152253,1769883038962,-1000.0,0.000214,2]
[404152255,1769883038972,-1000.0,0.000214,2]
[404152257,1769883038981,-1000.0,0.000214,2]
[404152259,1769883038991,-563.370335,0.000214,2]
[404152261,1769883039000,-1000.0,0.000215,2]
[404152263,1769883039009,-209.21844516,0.00021617,2]
[404152265,1769883039020,-2000.0,0.0002164,12]
[404152267,1769883039030,-150.49482106,0.00021918,2]
[404152269,1769883039039,-1139.21341214,0.00021994,2]
[404152271,1769883039048,-152.56,0.00022,7]
[404152273,1769883039058,-150.61,0.00022503,2]
[404152275,1769883039067,-823.0,0.00022863,2]
[404152277,1769883039076,-1431.29548625,0.00023174,2]
[404152279,1769883039088,-1860.70451375,0.00023174,2]
[404152281,1769883039098,-250.0,0.00023196,2]
[404152283,1769883039107,-864.0,0.00023202,10]
[404152286,1769883039116,-277.0,0.00023534,10]
[404152288,1769883039126,-236.90912172,0.00023616,2]
[404152289,1769883039135,-409.60790885,0.00024113,2]
[404152292,1769883039145,-1060.82925923,0.0002438,22]
[404152294,1769883039157,-939.17074077,0.0002438,22]
[404152296,1769883039166,-46.48202064,0.00024658,2]
[404152298,1769883039176,-103.51797936,0.00024658,2]
[404152300,1769883039186,-380.0,0.00024658,2]
[404152302,1769883039196,-379.21110503,0.000248,2]
[404152305,1769883039214,-2449.64641403,0.000248,2]
[404152307,1769883039227,-3650.04248094,0.000248,2]
[404152309,1769883039236,-583.73630526,0.00024858,2]
[404152311,1769883039245,-3000.0,0.000249,2]
[404152313,1769883039254,-60963.8214818,0.000249,2]
[404152315,1769883039264,-3000.0,0.0002491,2]
[404152317,1769883039273,-3000.0,0.0002492,2]
[404152319,1769883039282,-3000.0,0.0002493,2]
[404152321,1769883039292,-3000.0,0.0002494,2]
[404152323,1769883039301,-3000.0,0.0002495,2]
[404152336,1769883039407,-1152.0,0.00024957,2]
[404152338,1769883039417,-3000.0,0.0002496,2]
[404152340,1769883039427,-5746.544258,0.0002497,2]
[404152342,1769883039437,-1433.706182,0.00024993,2]
[404152344,1769883039446,-200.20523241,0.00025205,2]
[404152346,1769883039456,-150.0,0.00025206,2]
[404152348,1769883039465,-150.0,0.00025206,2]
[404152350,1769883039475,-500.0,0.00025206,2]
[404152352,1769883039484,-500.0,0.00025206,2]
[404152354,1769883039494,-150.0,0.00025206,2]
[404152356,1769883039503,-208.5968267,0.00025206,2]
[404152358,1769883039512,-262.38384027,0.00025206,2]
[404152360,1769883039521,-150.0,0.00025206,2]
[404152362,1769883039530,-150.0,0.00025206,2]
[404152364,1769883039540,-150.0,0.00025206,2]
[404152366,1769883039549,-500.0,0.00025206,2]
[404152368,1769883039558,-150.0,0.00025206,2]
[404152370,1769883039567,-150.0,0.00025343,2]
[404152372,1769883039576,-500.0,0.00025343,2]
[404152374,1769883039585,-500.0,0.00025343,2]
[404152376,1769883039594,-150.0,0.00025343,2]
[404152378,1769883039603,-239.60909828,0.00025343,2]
[404152380,1769883039612,-150.0,0.00025343,2]
[404152382,1769883039620,-150.64989022,0.00025343,2]
[404152384,1769883039629,-1767.0,0.00025421,2]
[404152386,1769883039638,-500.0,0.0002548,2]
[404152387,1769883039647,-500.0,0.0002548,2]
[404152389,1769883039657,-1000.0,0.00025522,10]
[404152391,1769883039666,-264.59979829,0.00025617,2]
[404152393,1769883039675,-500.0,0.00025617,2]
[404152395,1769883039687,-500.0,0.00025617,2]
[404152398,1769883039696,-500.0,0.00025754,2]
[404152400,1769883039706,-500.0,0.00025754,2]
[404152401,1769883039715,-500.0,0.00025891,2]
[404152403,1769883039724,-500.0,0.00025891,2]
[404152405,1769883039733,-522.60105806,0.00026028,2]
[404152407,1769883039744,-500.0,0.00026028,2]
[404152409,1769883039753,-611.50039414,0.00026165,2]
[404152411,1769883039762,-164.0,0.00026274,19]
[404152412,1769883039772,-1139.21341214,0.00026409,2]
[404152414,1769883039782,-2000.0,0.00027119,32]
[404152416,1769883039791,-160.0,0.00027126,2]
[404152418,1769883039803,-160.0,0.00027126,2]
[404152421,1769883039812,-1041.66666667,0.00027126,2]
[404152423,1769883039821,-223.36,0.000272,2]
[404152424,1769883039830,-1613.0,0.00027243,2]
[404152426,1769883039839,-292.29047485,0.00027617,2]
[404152428,1769883039848,-500.0,0.0002795,7]
[404152430,1769883039858,-160.0,0.00028,7]
[404152432,1769883039867,-1000.0,0.00028074,30]
[404152434,1769883039876,-244.0,0.00028074,30]
[404152436,1769883039886,-500.0,0.00028297,7]
[404152438,1769883039900,-159.0,0.00028466,29]
[404152440,1769883039910,-699.85,0.000285,14]
[404152442,1769883039919,-500.0,0.0002883,7]
[404152444,1769883039929,-160.0,0.00029,10]
[404152446,1769883039938,-319.98115142,0.00029617,2]
[404152448,1769883039947,-2258.0,0.00029737,2]
[404152450,1769883039956,-2000.0,0.00029859,42]
[404152452,1769883039968,-500.0,0.00030051,7]
[404152454,1769883039977,-153.588,0.00030068,25]
[404152456,1769883039986,-949.48588857,0.00030268,7]
[404152458,1769883039995,-500.72855744,0.00030275,7]
[404152460,1769883040004,-242.81521,0.000305,120]
[404152462,1769883040014,-200.0,0.000305,120]
[404152464,1769883040023,-6478.9,0.000305,2]
[404152466,1769883040032,-158.7,0.000305,7]
[404152469,1769883040040,-312.04333,0.000305,120]
[404152471,1769883040050,-169.0,0.00030658,41]
[404152473,1769883040058,-1139.21341214,0.00030824,2]
[404152475,1769883040067,-1000.0,0.00030881,30]
[404152477,1769883040078,-492.0,0.00030881,30]
[404152479,1769883040087,-150.61,0.00031111,2]
[404152481,1769883040096,-347.67182798,0.00031617,2]
[404152483,1769883040106,-737.29423593,0.00031621,2]
[404152485,1769883040115,-1078.116076,0.00031732,60]
[404152487,1769883040124,-754.681253,0.00031732,30]
[404152489,1769883040133,-200.0,0.000322,120]
[404152491,1769883040143,-2115.8373,0.0003222,30]
[404152493,1769883040151,-223.36,0.000323,2]
[404152495,1769883040160,-3162.0,0.00032461,2]
[404152497,1769883040168,-1050.72534947,0.00032599,2]
[404152499,1769883040178,-2000.0,0.00032599,52]
[404152500,1769883040187,-500.0,0.00032876,10]
[404152503,1769883040196,-500.0,0.00032876,10]
[404152504,1769883040206,-500.0,0.00032876,10]
[404152506,1769883040215,-500.0,0.00032876,10]
[404152508,1769883040223,-500.0,0.00032876,10]
[404152510,1769883040233,-500.0,0.00032876,10]
[404152512,1769883040242,-500.0,0.00032876,10]
[404152514,1769883040251,-500.0,0.00032876,10]
[404152515,1769883040260,-500.0,0.00032876,10]
[404152516,1769883040268,-500.0,0.00032876,10]
[404152517,1769883040278,-500.0,0.00032876,10]
[404152518,1769883040287,-500.0,0.00032876,10]
[404152519,1769883040296,-500.0,0.00032876,10]
[404152520,1769883040305,-500.0,0.00032876,10]
[404152521,1769883040314,-500.0,0.00032876,10]
[404152522,1769883040323,-500.0,0.00032876,10]
[404152523,1769883040332,-500.0,0.00032876,10]
[404152524,1769883040342,-500.0,0.00032876,10]
[404152525,1769883040351,-1041.66666667,0.0003288,10]
[404152526,1769883040360,-2671.77767132,0.00033026,4]
[404152528,1769883040369,-163.48901555,0.000332,117]
[404152530,1769883040379,-375.36250455,0.00033617,120]
[404152531,1769883040388,-393.72,0.00033698,30]
[404152532,1769883040397,-200.0,0.000339,120]
[404152533,1769883040407,-637.94,0.00033928,60]
[404152535,1769883040416,-155.0,0.00033945,65]
[404152538,1769883040426,-1000.0,0.0003397,30]
[404152540,1769883040437,-791.0,0.0003397,30]
[404152541,1769883040446,-637.94,0.00034028,60]
[404152542,1769883040455,-637.94,0.00034128,60]
[404152543,1769883040464,-637.94,0.00034228,60]
[404152545,1769883040474,-215.623215,0.00034271,60]
[404152547,1769883040483,-637.94,0.00034328,60]
[404152549,1769883040493,-168.0,0.00034368,2]
[404152552,1769883040503,-637.94,0.00034428,60]
[404152554,1769883040512,-168.0,0.0003448,2]
[404152556,1769883040521,-168.0,0.00034512,2]
[404152558,1769883040530,-168.0,0.00034516,2]
[404152559,1769883040540,-393.72,0.0003452,31]
[404152562,1769883040550,-637.94,0.00034528,60]
[404152563,1769883040558,-637.94,0.00034628,60]
[404152565,1769883040567,-168.0,0.00034728,2]
[404152567,1769883040576,-637.94,0.00034728,60]
[404152569,1769883040585,-637.94,0.00034828,60]
[404152571,1769883040594,-150.61,0.0003487,2]
[404152573,1769883040603,-637.94,0.00034928,60]
[404152575,1769883040612,-6478.9,0.00035,14]
[404152577,1769883040621,-637.94,0.00035028,60]
[404152579,1769883040631,-637.94,0.00035128,60]
[404152581,1769883040640,-748.0,0.0003517,11]
[404152583,1769883040650,-637.94,0.00035228,60]
[404152586,1769883040659,-1139.21341214,0.00035239,2]
[404152587,1769883040668,-223.36,0.000353,2]
[404152589,1769883040677,-637.94,0.00035328,60]
[404152592,1769883040688,-2000.0,0.00035339,62]
[404152593,1769883040698,-393.72,0.00035342,32]
[404152595,1769883040707,-168.0,0.00035424,2]
[404152597,1769883040717,-637.94,0.00035428,60]
[404152599,1769883040726,-4427.0,0.00035433,2]
[404152601,1769883040735,-637.94,0.00035528,60]
[404152603,1769883040744,-200.0,0.000356,120]
[404152605,1769883040753,-403.05318111,0.00035617,120]
[404152607,1769883040762,-637.94,0.00035628,60]
[404152609,1769883040771,-637.94,0.00035728,60]
[404152611,1769883040780,-168.0,0.00035826,2]
[404152613,1769883040789,-637.94,0.00035828,60]
[404152615,1769883040799,-637.94,0.00035928,60]
[404152618,1769883040807,-637.94,0.00036028,60]
[404152621,1769883040816,-292.15872386,0.00036068,5]
[404152623,1769883040825,-420.86,0.00036113,60]
[404152625,1769883040834,-637.94,0.00036128,60]
[404152627,1769883040844,-2087.74559093,0.00036149,3]
[404152629,1769883040854,-595.05340168,0.00036149,3]
[404152631,1769883040863,-2380.21360672,0.00036149,3]
[404152633,1769883040872,-1896.32290497,0.00036153,2]
[404152635,1769883040882,-393.72,0.00036164,33]
[404152637,1769883040891,-420.86,0.00036213,60]
[404152639,1769883040903,-168.0,0.0003622,2]
[404152641,1769883040913,-637.94,0.00036228,60]
[404152643,1769883040922,-168.0,0.00036303,2]
[404152645,1769883040932,-420.86,0.00036313,60]
[404152647,1769883040942,-637.94,0.00036328,60]
[404152649,1769883040951,-691.6962548,0.00036384,2]
[404152651,1769883040960,-508.3023,0.00036385,2]
[404152653,1769883040971,-508.3023,0.00036385,3]
[404152655,1769883040980,-508.3023,0.00036385,4]
[404152657,1769883040989,-508.3023,0.00036385,2]
[404152659,1769883040998,-420.86,0.00036413,60]
[404152662,1769883041008,-637.94,0.00036428,60]
[404152664,1769883041018,-637.94,0.00036528,60]
[404152666,1769883041027,-420.86,0.00036613,60]
[404152668,1769883041036,-637.94,0.00036628,60]
[404152670,1769883041045,-2968.23,0.000367,16]
[404152672,1769883041056,-420.86,0.00036713,60]
[404152674,1769883041066,-637.94,0.00036728,60]
[404152676,1769883041074,-420.86,0.00036813,60]
[404152678,1769883041084,-637.94,0.00036828,60]
[404152680,1769883041093,-420.86,0.00036913,60]
[404152682,1769883041102,-637.94,0.00036928,60]
[404152683,1769883041111,-393.72,0.00036986,34]
[404152684,1769883041120,-160.0,0.00037,7]
[404152685,1769883041129,-160.0,0.00037,3]
[404152686,1769883041137,-1041.66666667,0.00037,7]
[404152687,1769883041146,-1041.66666667,0.00037,3]
[404152688,1769883041155,-420.86,0.00037013,60]